bitfinex/quotes_SOLUSD_20241210
["timestamp","ask_amount","ask_price","bid_price","bid_amount"]
[1733790324718,36.10328108,218.28,218.27,0.30343966]
[1733790326125,36.10328108,218.28,218.24,0.30343966]
[1733790326325,36.10328108,218.25,218.24,0.30343966]
[1733790326843,36.10328108,218.26,218.24,0.30343966]
[1733790327306,36.10328108,218.25,218.24,0.30343966]
[1733790327508,36.10328108,218.26,218.24,0.30343966]
[1733790327712,36.67490688,218.35,218.28,0.30343966]
[1733790327713,36.10328108,218.29,218.28,0.30343966]
[1733790327937,36.10328108,218.3,218.28,0.30343966]
[1733790328509,36.10328108,218.32,218.3,0.30343966]
[1733790328816,36.10328108,218.34,218.33,0.30343966]
[1733790329741,0.5716258,218.35,218.33,0.30343966]
[1733790331239,36.10328108,218.34,218.33,0.30343966]
[1733790332055,36.67490688,218.35,218.33,0.30343966]
[1733790332352,0.5716258,218.35,218.33,0.30343966]
[1733790332736,0.5716258,218.35,218.34,36.10328108]
[1733790333530,0.5716258,218.35,218.34,70.13114508]
[1733790333732,0.5716258,218.35,218.34,46.22877108]
[1733790334768,36.10328108,218.45,218.34,46.22877108]
[1733790334769,7.7068,218.51,218.47,0.30343966]
[1733790334952,7.7068,218.51,218.45,0.30343966]
[1733790335121,10.0,218.48,218.41,0.30343966]
[1733790335554,7.7068,218.51,218.47,0.30343966]
[1733790335864,7.7068,218.51,218.49,0.30343966]
[1733790336225,22.16103805,218.5,218.47,0.30343966]
[1733790336443,22.16103805,218.48,218.47,0.30343966]
[1733790336627,7.7068,218.51,218.47,0.30343966]
[1733790336827,22.16103805,218.48,218.47,0.30343966]
[1733790338060,22.16103805,218.49,218.47,0.30343966]
[1733790338254,22.16103805,218.48,218.47,0.30343966]
[1733790338633,2.1079258,218.57,218.55,0.30343966]
[1733790338937,2.1079258,218.57,218.46,0.30343966]
[1733790338938,10.0,218.55,218.46,0.30343966]
[1733790339138,22.16103805,218.47,218.46,0.30343966]
[1733790339328,22.16103805,218.47,218.43,0.30343966]
[1733790339536,22.16103805,218.46,218.43,0.30343966]
[1733790339729,22.16103805,218.47,218.46,0.30343966]
[1733790340158,22.16103805,218.48,218.46,0.30343966]
[1733790340459,26.55656385,218.57,218.53,0.30343966]
[1733790340760,22.16103805,218.54,218.53,0.30343966]
[1733790341138,22.16103805,218.54,218.5,0.30343966]
[1733790341356,22.16103805,218.51,218.5,0.30343966]
[1733790344159,22.16103805,218.51,218.44,0.30343966]
[1733790344346,22.16103805,218.46,218.37,0.30343966]
[1733790344546,22.16103805,218.38,218.37,0.30343966]
[1733790345434,22.16103805,218.39,218.37,0.30343966]
[1733790345831,22.16103805,218.41,218.4,0.30343966]
[1733790346953,22.16103805,218.41,218.38,0.30343966]
[1733790347265,22.16103805,218.39,218.38,0.30343966]
[1733790348166,22.16103805,218.43,218.42,0.30343966]
[1733790348952,22.16103805,218.45,218.42,0.30343966]
[1733790349160,22.16103805,218.45,218.44,0.30343966]
[1733790349664,22.16103805,218.46,218.44,0.30343966]
[1733790349856,22.16103805,218.45,218.44,0.30343966]
[1733790351775,22.16103805,218.45,218.39,0.30343966]
[1733790351978,22.16103805,218.4,218.37,0.30343966]
[1733790352267,22.16103805,218.38,218.37,0.30343966]
[1733790352843,1.6257,218.43,218.4,0.30343966]
[1733790353037,22.16103805,218.41,218.4,0.30343966]
[1733790353340,22.16103805,218.41,218.37,0.30343966]
[1733790353553,22.16103805,218.38,218.37,0.30343966]
[1733790356570,10.12549,218.36,218.29,0.30343966]
[1733790356885,22.16103805,218.3,218.29,0.30343966]
[1733790357059,22.16103805,218.3,218.27,0.30343966]
[1733790357261,1.6257,218.42,218.35,0.30343966]
[1733790357471,22.16103805,218.37,218.35,0.30343966]
[1733790357664,1.6257,218.42,218.26,10.0]
[1733790357665,22.16103805,218.42,218.41,0.30343966]
[1733790358080,22.16103805,218.44,218.43,0.30343966]
[1733790358269,22.16103805,218.47,218.46,0.30343966]
[1733790360283,22.16103805,218.47,218.44,0.30343966]
[1733790360578,22.16103805,218.45,218.44,0.30343966]
[1733790361080,22.16103805,218.45,218.42,0.30343966]
[1733790361274,22.16103805,218.43,218.42,0.30343966]
[1733790362366,22.16103805,218.43,218.4,0.30343966]
[1733790362567,22.16103805,218.41,218.4,0.30343966]
[1733790362765,22.16103805,218.41,218.36,0.30343966]
[1733790362997,44.3220761,218.37,218.34,0.30343966]
[1733790363157,32.16103805,218.35,218.27,0.30343966]
[1733790363356,1.75119,218.32,218.25,0.30343966]
[1733790363555,0.12549,218.3,218.21,0.30343966]
[1733790363956,22.16103805,218.22,218.19,0.30343966]
[1733790364164,22.16103805,218.24,218.21,0.30343966]
[1733790364467,22.16103805,218.22,218.21,0.30343966]
[1733790364977,19.82205034,218.3,218.22,0.30343966]
[1733790365161,12.11245034,218.3,218.22,0.30343966]
[1733790365363,2.2904,218.3,218.22,0.30343966]
[1733790365583,1.6257,218.32,218.28,0.30343966]
[1733790365784,1.6257,218.32,218.24,0.30343966]
[1733790365958,1.6257,218.32,218.26,0.30343966]
[1733790366153,1.6257,218.32,218.28,0.30343966]
[1733790366385,22.16103805,218.35,218.28,0.30343966]
[1733790366558,22.16103805,218.35,218.29,0.30343966]
[1733790366759,22.16103805,218.35,218.26,0.30343966]
[1733790366958,22.16103805,218.35,218.29,0.30343966]
[1733790367186,22.16103805,218.3,218.29,0.30343966]
[1733790367370,22.16103805,218.31,218.29,0.30343966]
[1733790367881,22.16103805,218.31,218.27,0.30343966]
[1733790368189,22.16103805,218.28,218.27,0.30343966]
[1733790368370,22.16103805,218.28,218.26,0.30343966]
[1733790368691,44.3220761,218.27,218.19,0.30343966]
[1733790368984,22.16103805,218.2,218.19,0.30343966]
[1733790370576,22.16103805,218.25,218.23,0.30343966]
[1733790370767,10.0,218.34,218.26,0.30343966]
[1733790370972,10.0,218.29,218.22,0.30343966]
[1733790371491,10.0,218.24,218.2,0.30343966]
[1733790371698,10.0,218.24,218.18,0.30343966]
[1733790371988,0.12549,218.23,218.18,0.30343966]
[1733790372172,36.07644688,218.19,218.18,0.30343966]
[1733790372798,36.07644688,218.19,218.16,0.30343966]
[1733790372977,36.07644688,218.24,218.21,0.30343966]
[1733790373599,36.07644688,218.22,218.17,0.30343966]
[1733790373898,36.07644688,218.24,218.17,0.30343966]
[1733790373899,36.07644688,218.18,218.17,0.30343966]
[1733790374470,36.07644688,218.18,218.13,0.30343966]
[1733790374699,36.07644688,218.14,218.13,0.30343966]
[1733790376113,36.07644688,218.24,218.13,0.30343966]
[1733790376302,36.07644688,218.17,218.16,0.30343966]
[1733790377604,36.07644688,218.24,218.23,0.30343966]
[1733790377771,36.07644688,218.26,218.25,0.30343966]
[1733790378395,36.07644688,218.3,218.25,0.30343966]
[1733790378601,36.07644688,218.32,218.31,0.30343966]
[1733790378782,36.07644688,218.34,218.31,0.30343966]
[1733790378985,36.07644688,218.34,218.33,0.30343966]
[1733790380174,36.07644688,218.38,218.37,0.30343966]
[1733790380474,36.07644688,218.38,218.3,36.07644688]
[1733790380475,36.07644688,218.4,218.39,0.30343966]
[1733790381282,36.07644688,218.4,218.37,0.30343966]
[1733790381581,36.07644688,218.38,218.37,0.30343966]
[1733790381972,36.07644688,218.38,218.35,0.30343966]
[1733790382200,36.07644688,218.36,218.35,0.30343966]
[1733790382403,11.5025,218.48,218.39,0.30343966]
[1733790382404,36.07644688,218.4,218.39,0.30343966]
[1733790382578,36.07644688,218.42,218.39,0.30343966]
[1733790382775,36.07644688,218.4,218.39,0.30343966]
[1733790383001,1.5025,218.48,218.45,0.30343966]
[1733790383196,36.07644688,218.46,218.45,0.30343966]
[1733790383388,36.07644688,218.48,218.45,0.30343966]
[1733790383588,36.07644688,218.48,218.47,0.30343966]
[1733790383790,1.5025,218.55,218.5,0.30343966]
[1733790383990,36.07644688,218.51,218.5,0.30343966]
[1733790384985,36.07644688,218.51,218.48,0.30343966]
[1733790385200,1.5025,218.55,218.53,0.30343966]
[1733790386219,36.07644688,218.54,218.53,0.30343966]
[1733790386716,36.07644688,218.54,218.51,0.30343966]
[1733790386884,36.07644688,218.52,218.51,0.30343966]
[1733790387285,36.07644688,218.52,218.49,0.30343966]
[1733790387514,36.07644688,218.5,218.49,0.30343966]
[1733790389426,36.07644688,218.52,218.51,0.30343966]
[1733790389586,36.07644688,218.54,218.53,0.30343966]
[1733790389782,36.07644688,218.56,218.55,0.30343966]
[1733790389986,0.5716258,218.57,218.55,0.30343966]
[1733790391827,22.11987704,218.56,218.55,0.30343966]
[1733790392317,22.11987704,218.56,218.45,6.1467]
[1733790392318,22.11987704,218.56,218.52,0.30343966]
[1733790392520,22.11987704,218.53,218.5,0.30343966]
[1733790392728,22.11987704,218.51,218.5,0.30343966]
[1733790397205,22.11987704,218.51,218.46,0.30343966]
[1733790397501,9.69656034,218.54,218.42,0.30343966]
[1733790397502,44.23975408,218.47,218.42,0.30343966]
[1733790397705,22.11987704,218.43,218.38,0.30343966]
[1733790397924,22.11987704,218.39,218.38,0.30343966]
[1733790398122,11.98486034,218.5,218.4,0.30343966]
[1733790398298,22.11987704,218.44,218.43,0.30343966]
[1733790398503,2.2879,218.54,218.5,0.30343966]
[1733790398723,22.69150284,218.57,218.5,0.30343966]
[1733790398937,22.11987704,218.51,218.5,0.30343966]
[1733790399408,22.11987704,218.51,218.47,0.30343966]
[1733790399602,22.11987704,218.48,218.45,0.30343966]
[1733790399806,44.23975408,218.46,218.43,0.30343966]
[1733790400026,22.11987704,218.44,218.43,0.30343966]
[1733790400324,16.55966034,218.56,218.35,6.2034]
[1733790400325,22.11987704,218.46,218.45,0.30343966]
[1733790401034,2.2877,218.56,218.45,0.30343966]
[1733790401035,22.11987704,218.48,218.45,0.30343966]
[1733790401232,22.11987704,218.5,218.49,0.30343966]
[1733790402032,22.69150284,218.57,218.54,0.30343966]
[1733790402203,22.11987704,218.55,218.52,0.30343966]
[1733790402402,24.97910284,218.57,218.5,0.30343966]
[1733790402618,20.0,218.54,218.5,0.30343966]
[1733790403020,20.0,218.52,218.47,0.30343966]
[1733790403199,20.0,218.54,218.47,0.30343966]
[1733790403200,22.11987704,218.48,218.47,0.30343966]
[1733790403832,22.11987704,218.48,218.43,0.30343966]
[1733790404010,22.11987704,218.44,218.43,0.30343966]
[1733790404732,22.11987704,218.44,218.41,0.30343966]
[1733790404914,22.11987704,218.42,218.41,0.30343966]
[1733790405310,22.11987704,218.42,218.35,6.2034]
[1733790405311,22.11987704,218.44,218.43,0.30343966]
[1733790405611,22.11987704,218.44,218.35,38.32327704]
[1733790405612,22.11987704,218.46,218.45,0.30343966]
[1733790405811,22.11987704,218.48,218.45,0.30343966]
[1733790406006,0.5716258,218.57,218.47,0.30343966]
[1733790406228,0.5716258,218.57,218.56,0.30343966]
[1733790406854,22.69150284,218.57,218.56,0.30343966]
[1733790408549,0.5716258,218.57,218.56,0.30343966]
[1733790408714,22.69150284,218.57,218.56,0.30343966]
[1733790408918,0.5716258,218.57,218.56,10.42892966]
[1733790409119,22.11987704,218.67,218.66,0.30343966]
[1733790409514,22.11987704,218.69,218.68,0.30343966]
[1733790410033,22.11987704,218.69,218.66,0.30343966]
[1733790410230,22.11987704,218.67,218.63,0.30343966]
[1733790410436,22.11987704,218.64,218.61,0.30343966]
[1733790411039,22.11987704,218.64,218.63,0.30343966]
[1733790411244,35.93175533,218.64,218.63,0.30343966]
[1733790412618,35.93175533,218.66,218.65,0.30343966]
[1733790413062,35.93175533,218.66,218.63,0.30343966]
[1733790413219,35.93175533,218.64,218.61,0.30343966]
[1733790413416,35.93175533,218.62,218.61,0.30343966]
[1733790414024,2.2861,218.72,218.61,0.30343966]
[1733790414226,2.1795258,218.79,218.72,0.30343966]
[1733790414437,35.93175533,218.73,218.71,0.30343966]
[1733790414639,35.93175533,218.72,218.71,0.30343966]
[1733790416163,35.93175533,218.72,218.69,0.30343966]
[1733790416330,2.2856,218.76,218.69,0.30343966]
[1733790416331,35.93175533,218.7,218.69,0.30343966]
[1733790417862,35.93175533,218.7,218.66,0.30343966]
[1733790418035,71.86351066,218.68,218.62,0.30343966]
[1733790418234,35.93175533,218.64,218.62,0.30343966]
[1733790419457,35.93175533,218.66,218.62,0.30343966]
[1733790419659,35.93175533,218.68,218.67,0.30343966]
[1733790420767,35.93175533,218.7,218.69,0.30343966]
[1733790421562,0.5716258,218.79,218.69,0.30343966]
[1733790421738,35.93175533,218.77,218.76,0.30343966]
[1733790422463,35.93175533,218.77,218.71,0.30343966]
[1733790422636,35.93175533,218.72,218.71,0.30343966]
[1733790423060,35.93175533,218.72,218.65,0.30343966]
[1733790423257,35.93175533,218.66,218.65,0.30343966]
[1733790424938,35.93175533,218.66,218.5,0.68617011]
[1733790424939,35.93175533,218.66,218.5,36.61792544]
[1733790425268,35.93175533,218.66,218.38,70.0]
[1733790425269,35.93175533,218.52,218.42,6.2397]
[1733790425458,35.93175533,218.47,218.42,6.2397]
[1733790425765,35.93175533,218.47,218.39,35.93175533]
[1733790425939,35.93175533,218.54,218.46,35.93175533]
[1733790426138,35.93175533,218.58,218.52,35.93175533]
[1733790426451,1.5533,218.72,218.57,35.93175533]
[1733790426767,35.93175533,218.64,218.55,35.93175533]
[1733790426943,35.93175533,218.64,218.55,45.93175533]
[1733790427142,35.93175533,218.62,218.56,23.902374]
[1733790427453,35.93175533,218.62,218.55,45.93175533]
[1733790427635,35.93175533,218.62,218.55,10.0]
[1733790427841,35.93175533,218.62,218.5,16.2397]
[1733790427842,35.93175533,218.56,218.5,6.2397]
[1733790428072,35.93175533,218.52,218.44,6.2397]
[1733790428769,35.93175533,218.56,218.47,45.93175533]
[1733790428975,35.93175533,218.56,218.49,35.93175533]
[1733790429143,35.93175533,218.58,218.51,45.93175533]
[1733790429555,35.93175533,218.58,218.53,312.0]
[1733790430369,35.93175533,218.58,218.51,35.93175533]
[1733790430575,35.93175533,218.58,218.49,35.93175533]
[1733790431392,35.93175533,218.58,218.47,23.902374]
[1733790431393,22.12383889,218.55,218.47,22.12383889]
[1733790432161,22.12383889,218.57,218.49,22.12383889]
[1733790432858,22.12383889,218.55,218.47,22.24932889]
[1733790433071,22.12383889,218.49,218.41,32.12383889]
[1733790433277,22.12383889,218.49,218.4,312.0]
[1733790433679,22.12383889,218.49,218.39,32.12383889]
[1733790433883,22.12383889,218.51,218.43,22.12383889]
[1733790434083,22.12383889,218.58,218.5,0.12549]
[1733790434270,22.12383889,218.6,218.52,22.12383889]
[1733790434584,22.12383889,218.58,218.5,22.12383889]
[1733790434886,3.903,218.65,218.52,22.12383889]
[1733790434887,22.12383889,218.6,218.52,22.12383889]
[1733790435083,3.903,218.65,218.5,22.12383889]
[1733790435084,22.12383889,218.58,218.5,22.12383889]
[1733790435255,22.12383889,218.56,218.48,22.24932889]
[1733790435656,22.12383889,218.54,218.46,22.12383889]
[1733790436257,22.12383889,218.58,218.5,22.12383889]
[1733790436452,22.12383889,218.56,218.48,22.12383889]
[1733790436684,22.12383889,218.56,218.48,334.12383889]
[1733790437398,22.12383889,218.54,218.46,22.12383889]
[1733790437568,22.12383889,218.5,218.42,22.12383889]
[1733790439197,22.12383889,218.54,218.46,22.12383889]
[1733790439494,22.12383889,218.54,218.45,0.12549]
[1733790440389,22.12383889,218.54,218.46,312.0]
[1733790441381,22.12383889,218.56,218.48,22.12383889]
[1733790442192,22.12383889,218.58,218.49,0.25098]
[1733790442397,22.12383889,218.62,218.53,0.12549]
[1733790442609,22.12383889,218.66,218.57,0.25098]
[1733790442778,22.12383889,218.66,218.57,24.027864]
[1733790442975,22.12383889,218.64,218.54,22.12383889]
[1733790443182,22.12383889,218.64,218.55,0.25098]
[1733790444488,22.12383889,218.64,218.57,312.0]
[1733790444697,1.6162,218.73,218.59,32.12383889]
[1733790444885,22.12383889,218.71,218.64,0.25098]
[1733790445076,22.12383889,218.75,218.68,0.12549]
[1733790445392,22.12383889,218.75,218.68,0.25098]
[1733790445596,22.12383889,218.75,218.67,22.12383889]
[1733790446176,22.12383889,218.75,218.68,0.25098]
[1733790446396,22.12383889,218.77,218.69,22.12383889]
[1733790446596,22.12383889,218.77,218.7,0.25098]
[1733790446794,22.69546469,218.79,218.71,22.12383889]
[1733790447112,22.69546469,218.79,218.72,0.12549]
[1733790447286,0.5716258,218.79,218.74,0.12549]
[1733790447489,22.69546469,218.79,218.71,32.80944621]
[1733790447793,22.12383889,218.75,218.74,312.0]
[1733790448199,22.12383889,218.77,218.71,20.0]
[1733790448399,0.5716258,218.79,218.73,0.25098]
[1733790448703,0.5716258,218.79,218.75,0.12549]
[1733790449279,0.5716258,218.79,218.73,0.12549]
[1733790449682,22.12383889,218.78,218.72,10.0]
[1733790450089,0.5716258,218.79,218.73,0.25098]
[1733790451117,0.5716258,218.79,218.75,312.0]
[1733790451699,0.5716258,218.79,218.76,0.12549]
[1733790452394,0.5716258,218.79,218.75,0.12549]
[1733790452793,0.5716258,218.79,218.72,32.12383889]
[1733790453309,22.12383889,218.78,218.72,10.0]
[1733790453806,22.12383889,218.78,218.73,0.12549]
[1733790454013,22.12383889,218.78,218.72,10.0]
[1733790454920,0.5716258,218.79,218.72,322.0]
[1733790455091,0.5716258,218.79,218.72,344.12383889]
[1733790455707,0.5716258,218.79,218.72,32.12383889]
[1733790455910,22.12383889,218.76,218.66,22.12383889]
[1733790456087,22.12383889,218.74,218.66,22.12383889]
[1733790456897,22.12383889,218.72,218.64,22.12383889]
[1733790457583,22.12383889,218.7,218.62,22.12383889]
[1733790457904,22.12383889,218.72,218.64,22.12383889]
[1733790458112,22.12383889,218.7,218.62,22.12383889]
[1733790458283,22.12383889,218.66,218.58,22.12383889]
[1733790458798,22.12383889,218.66,218.58,334.12383889]
[1733790459318,22.12383889,218.64,218.56,22.12383889]
[1733790460014,22.12383889,218.64,218.57,0.12549]
[1733790460216,22.12383889,218.65,218.57,0.12549]
[1733790460596,22.12383889,218.63,218.56,22.12383889]
[1733790460917,22.12383889,218.63,218.48,11.6014]
[1733790460918,22.12383889,218.57,218.46,16.3265]
[1733790461092,22.12383889,218.59,218.51,0.12549]
[1733790461294,22.12383889,218.57,218.5,22.12383889]
[1733790461497,22.12383889,218.53,218.46,22.12383889]
[1733790461698,1.659,218.6,218.4,14.11762663]
[1733790461699,22.12383889,218.51,218.44,22.12383889]
[1733790462194,22.12383889,218.51,218.35,46.33307431]
[1733790462195,22.12383889,218.49,218.4,22.12383889]
[1733790462402,32.12383889,218.57,218.43,22.12383889]
[1733790462403,22.12383889,218.5,218.43,22.12383889]
[1733790462723,22.12383889,218.54,218.46,22.12383889]
[1733790463096,22.12383889,218.51,218.44,22.12383889]
[1733790463515,22.12383889,218.53,218.44,22.12383889]
[1733790464021,6.549,218.57,218.45,0.12549]
[1733790464193,22.12383889,218.58,218.51,22.12383889]
[1733790464397,1.659,218.6,218.55,22.12383889]
[1733790464618,22.12383889,218.64,218.57,22.12383889]
[1733790464814,22.12383889,218.62,218.53,22.12383889]
[1733790465120,22.12383889,218.62,218.55,22.12383889]
[1733790465296,22.12383889,218.62,218.55,334.12383889]
[1733790466196,1.659,218.68,218.55,334.12383889]
[1733790466197,22.12383889,218.64,218.55,334.12383889]
[1733790467502,22.12383889,218.62,218.55,334.12383889]
[1733790467717,22.12383889,218.66,218.57,22.12383889]
[1733790467895,1.659,218.68,218.61,22.12383889]
[1733790468094,1.659,218.68,218.62,0.12549]
[1733790468323,2.2856,218.76,218.61,22.12383889]
[1733790468324,22.12383889,218.73,218.65,22.12383889]
[1733790469099,22.12383889,218.71,218.63,22.12383889]
[1733790469506,22.12383889,218.71,218.61,22.12383889]
[1733790469918,22.12383889,218.71,218.62,0.12549]
[1733790470419,22.12383889,218.73,218.65,22.12383889]
[1733790470923,22.12383889,218.73,218.65,334.12383889]
[1733790471109,22.12383889,218.73,218.65,312.0]
[1733790471509,22.12383889,218.73,218.63,22.12383889]
[1733790472224,1.659,218.76,218.59,22.12383889]
[1733790472225,22.12383889,218.67,218.59,22.12383889]
[1733790473309,22.12383889,218.61,218.49,22.12383889]
[1733790473500,22.12383889,218.57,218.49,22.12383889]
[1733790473702,22.12383889,218.57,218.5,0.12549]
[1733790473923,22.12383889,218.57,218.49,22.12383889]
[1733790474308,22.12383889,218.57,218.42,6.3265]
[1733790474309,22.12383889,218.55,218.47,22.12383889]
[1733790474501,22.12383889,218.55,218.47,334.12383889]
[1733790475307,1.659,218.62,218.5,0.12549]
[1733790475513,22.12383889,218.61,218.52,22.12383889]
[1733790475723,1.659,218.62,218.48,22.12383889]
[1733790475724,22.12383889,218.56,218.48,22.12383889]
[1733790476130,22.12383889,218.54,218.46,22.12383889]
[1733790476436,22.12383889,218.52,218.44,22.12383889]
[1733790478707,22.12383889,218.54,218.46,22.12383889]
[1733790478909,22.12383889,218.56,218.48,22.12383889]
[1733790479405,22.12383889,218.58,218.5,22.12383889]
[1733790479616,22.12383889,218.54,218.47,20.0]
[1733790479830,22.12383889,218.54,218.46,22.12383889]
[1733790480331,22.12383889,218.52,218.44,22.12383889]
[1733790481309,22.12383889,218.54,218.46,22.12383889]
[1733790481949,22.12383889,218.54,218.46,334.12383889]
[1733790482443,22.12383889,218.6,218.53,0.12549]
[1733790482619,1.659,218.62,218.56,22.12383889]
[1733790482822,22.12383889,218.67,218.59,22.12383889]
[1733790483127,22.12383889,218.65,218.57,22.12383889]
[1733790483624,22.12383889,218.67,218.59,22.12383889]
[1733790484015,22.12383889,218.65,218.57,22.12383889]
[1733790485535,1.659,218.68,218.61,22.12383889]
[1733790485741,1.659,218.68,218.63,22.12383889]
[1733790486221,1.659,218.68,218.61,22.12383889]
[1733790486421,22.12383889,218.67,218.59,22.12383889]
[1733790487056,1.659,218.68,218.61,22.12383889]
[1733790488550,2.2857,218.75,218.65,22.12383889]
[1733790488551,22.12383889,218.72,218.65,22.12383889]
[1733790488856,22.12383889,218.74,218.65,22.12383889]
[1733790489237,22.12383889,218.7,218.61,22.12383889]
[1733790489444,22.12383889,218.66,218.59,22.12383889]
[1733790489752,22.12383889,218.64,218.57,22.12383889]
[1733790489944,22.12383889,218.66,218.59,22.12383889]
[1733790490252,22.12383889,218.68,218.59,22.12383889]
[1733790492059,22.12383889,218.64,218.57,22.12383889]
[1733790492256,22.12383889,218.64,218.55,334.12383889]
[1733790492438,22.12383889,218.64,218.55,22.12383889]
[1733790493348,22.12383889,218.66,218.59,22.12383889]
[1733790494349,22.12383889,218.68,218.59,22.12383889]
[1733790494538,22.12383889,218.7,218.63,22.12383889]
[1733790494730,22.12383889,218.72,218.63,22.12383889]
[1733790494937,22.12383889,218.7,218.63,22.12383889]
[1733790495132,22.12383889,218.7,218.61,22.12383889]
[1733790495337,22.12383889,218.7,218.61,334.12383889]
[1733790495642,22.12383889,218.68,218.61,22.12383889]
[1733790495840,22.12383889,218.68,218.59,22.12383889]
[1733790496035,22.12383889,218.68,218.61,22.12383889]
[1733790496951,22.12383889,218.72,218.63,22.12383889]
[1733790497256,22.12383889,218.72,218.65,22.12383889]
[1733790497638,22.12383889,218.74,218.65,22.12383889]
[1733790497958,1.659,218.75,218.63,22.12383889]
[1733790497959,22.12383889,218.7,218.63,22.12383889]
[1733790498534,22.12383889,218.7,218.63,334.12383889]
[1733790499033,22.12383889,218.72,218.63,334.12383889]
[1733790499945,22.12383889,218.72,218.63,22.12383889]
[1733790500634,22.12383889,218.7,218.61,22.12383889]
[1733790500829,22.12383889,218.64,218.57,22.12383889]
[1733790501141,22.12383889,218.64,218.54,22.12383889]
[1733790502259,22.12383889,218.64,218.55,0.12549]
[1733790502647,22.12383889,218.66,218.59,0.12549]
[1733790502962,22.12383889,218.7,218.62,22.12383889]
[1733790503256,22.12383889,218.66,218.58,22.12383889]
[1733790503656,10.0,218.73,218.56,22.12383889]
[1733790503657,22.12383889,218.64,218.56,22.12383889]
[1733790504463,22.12383889,218.66,218.58,22.12383889]
[1733790504660,22.12383889,218.69,218.62,0.12549]
[1733790504869,22.12383889,218.73,218.64,22.12383889]
[1733790505158,23.78283889,218.75,218.67,0.25098]
[1733790505340,22.12383889,218.73,218.66,22.12383889]
[1733790505545,22.12383889,218.73,218.65,0.12549]
[1733790506064,22.12383889,218.73,218.65,0.25098]
[1733790506265,22.12383889,218.73,218.66,22.12383889]
[1733790506464,23.78283889,218.75,218.66,22.12383889]
[1733790507557,22.69546469,218.79,218.71,22.12383889]
[1733790507758,22.69546469,218.79,218.72,0.25098]
[1733790507961,0.5716258,218.79,218.73,22.12383889]
[1733790508441,0.5716258,218.79,218.76,0.25098]
[1733790509445,0.5716258,218.79,218.75,22.12383889]
[1733790509645,0.5716258,218.79,218.73,22.12383889]
[1733790509831,22.12383889,218.78,218.69,22.12383889]
[1733790510332,0.5716258,218.79,218.74,22.12383889]
[1733790510558,0.5716258,218.79,218.75,0.12549]
[1733790510861,0.5716258,218.79,218.77,0.12549]
[1733790511848,0.5716258,218.79,218.73,0.12549]
[1733790512049,22.69546469,218.79,218.73,0.12549]
[1733790512238,22.69546469,218.79,218.7,22.12383889]
[1733790512764,0.5716258,218.79,218.75,0.12549]
[1733790513356,0.5716258,218.79,218.72,42.12383889]
[1733790513560,0.5716258,218.79,218.73,0.12549]
[1733790513761,0.5716258,218.79,218.73,0.25098]
[1733790514260,1.6106,218.75,218.68,22.12383889]
[1733790514477,22.12383889,218.7,218.54,6.4015]
[1733790514644,22.12383889,218.68,218.58,22.12383889]
[1733790515542,22.12383889,218.68,218.59,0.12549]
[1733790516144,22.12383889,218.66,218.59,0.12549]
[1733790516344,22.12383889,218.66,218.58,22.12383889]
[1733790516936,22.12383889,218.64,218.58,312.0]
[1733790517180,22.12383889,218.6,218.5,22.12383889]
[1733790517382,22.12383889,218.6,218.44,10.0]
[1733790517383,22.12383889,218.51,218.44,22.12383889]
[1733790517667,22.12383889,218.51,218.42,22.12383889]
[1733790518174,22.12383889,218.57,218.38,22.12383889]
[1733790518175,22.12383889,218.45,218.38,22.12383889]
[1733790518373,22.12383889,218.47,218.38,22.12383889]
[1733790518536,33.98845922,218.57,218.35,13.50611771]
[1733790518537,22.12383889,218.51,218.45,0.12549]
[1733790519170,22.12383889,218.53,218.45,0.12549]
[1733790519346,22.12383889,218.53,218.47,0.12549]
[1733790519555,22.12383889,218.56,218.5,0.12549]
[1733790519751,1.6106,218.6,218.54,0.25098]
[1733790519952,22.12383889,218.61,218.54,312.25098]
[1733790520152,22.12383889,218.63,218.56,0.12549]
[1733790520762,22.12383889,218.63,218.56,0.25098]
[1733790521495,6.1581,218.65,218.54,312.0]
[1733790521496,22.12383889,218.61,218.54,312.0]
[1733790521781,22.12383889,218.59,218.49,22.12383889]
[1733790521983,22.12383889,218.57,218.49,22.12383889]
[1733790522359,22.12383889,218.57,218.5,0.12549]
[1733790522677,22.12383889,218.61,218.54,0.12549]
[1733790522852,22.12383889,218.63,218.56,0.12549]
[1733790523053,22.12383889,218.63,218.56,0.25098]
[1733790523572,22.12383889,218.65,218.57,22.12383889]
[1733790523776,22.12383889,218.65,218.58,0.12549]
[1733790524166,22.12383889,218.63,218.58,0.12549]
[1733790524470,22.12383889,218.61,218.56,0.12549]
[1733790524771,22.12383889,218.61,218.57,312.0]
[1733790525178,22.12383889,218.59,218.48,22.12383889]
[1733790525477,22.12383889,218.55,218.48,22.12383889]
[1733790525699,22.12383889,218.55,218.49,0.12549]
[1733790525886,22.12383889,218.55,218.46,22.12383889]
[1733790526688,22.12383889,218.55,218.47,0.25098]